bitfinex/quotes_ETHUSD_20250725
["timestamp","ask_amount","ask_price","bid_price","bid_amount"]
[1753404171885,4.791,3652.3,3652.1,0.4584]
[1753404172388,2.73757585,3652.9,3652.1,3.19654146]
[1753404172686,0.1368,3652.3,3652.2,2.73807568]
[1753404172890,11.941,3653.0,3652.1,3.33159679]
[1753404173054,4.82,3653.0,3652.5,2.73783813]
[1753404173254,4.82,3653.0,3652.5,3.19623355]
[1753404173588,0.1368,3652.6,3652.1,0.4584]
[1753404173786,0.1368,3652.6,3652.0,0.1368]
[1753404173787,0.1368,3652.6,3652.4,2.73786602]
[1753404174291,0.1368,3652.6,3652.5,2.73785078]
[1753404174671,0.1368,3652.6,3652.5,3.78967503]
[1753404174990,0.1368,3652.7,3652.6,2.73774905]
[1753404175490,0.1368,3652.7,3652.5,1.05182425]
[1753404175491,0.1368,3652.7,3652.3,0.7695]
[1753404175796,2.73718069,3653.4,3652.7,2.73768049]
[1753404175958,0.9393,3653.5,3652.5,2.87465078]
[1753404175959,0.1368,3653.0,3652.5,2.87465078]
[1753404176292,0.1368,3653.0,3652.7,2.73763599]
[1753404176471,4.796,3653.8,3653.0,2.73747604]
[1753404176663,4.796,3653.8,3652.4,2.7378586]
[1753404176664,0.8158,3652.8,3651.1,0.04]
[1753404176865,0.03422126,3652.7,3652.5,0.001]
[1753404177486,4.806,3652.7,3652.5,0.001]
[1753404178054,1.7551,3652.6,3650.9,0.4814]
[1753404178391,2.73839682,3651.8,3651.1,2.77888489]
[1753404178698,0.97352313,3652.5,3651.2,0.4584]
[1753404178910,2.73785481,3652.5,3651.8,2.7383703]
[1753404179103,0.8158,3652.6,3651.4,3.1970287]
[1753404179387,0.8158,3652.6,3651.8,2.72408622]
[1753404179388,2.73785267,3652.5,3651.8,2.72408622]
[1753404179990,0.03422407,3652.4,3651.4,2.73867557]
[1753404180194,0.03422407,3652.4,3651.3,0.4584]
[1753404180581,2.7721728,3652.4,3651.7,2.73839752]
[1753404180782,0.03422407,3652.4,3651.8,2.73835527]
[1753404181092,0.9393,3652.5,3651.9,2.73828656]
[1753404181457,3.67715183,3652.5,3651.5,2.73853476]
[1753404181678,3.67715183,3652.5,3651.3,0.4584]
[1753404181679,0.03422407,3652.4,3651.9,2.7382843]
[1753404181884,4.806,3652.7,3652.1,2.73809983]
[1753404182222,1.7168,3653.6,3652.2,0.4584]
[1753404182423,0.7775,3653.6,3652.2,0.33032091]
[1753404182570,0.7775,3653.6,3652.1,1.256]
[1753404182898,0.7775,3653.6,3652.2,0.4471]
[1753404183103,4.807,3653.8,3653.2,2.73731776]
[1753404183424,0.03421189,3653.7,3652.2,0.4471]
[1753404183715,0.56231002,3653.9,3653.3,2.73722441]
[1753404183918,0.50738913,3653.8,3653.5,2.73707919]
[1753404184224,0.50738913,3653.8,3652.7,2.73770087]
[1753404184415,0.50738913,3653.8,3652.6,0.4471]
[1753404184416,0.03421095,3653.8,3652.6,3.18487433]
[1753404184625,0.03421095,3653.8,3653.2,2.73727897]
[1753404184820,0.03421095,3653.8,3652.7,0.4584]
[1753404184985,0.9393,3653.7,3652.3,0.4584]
[1753404185191,0.97351283,3653.6,3652.3,0.44525245]
[1753404185494,0.4881,3653.5,3652.6,2.73775596]
[1753404185693,0.4881,3653.5,3653.0,2.73746108]
[1753404185898,0.0342147,3653.4,3653.0,2.73742535]
[1753404186085,0.03421376,3653.5,3653.1,2.73739665]
[1753404186286,0.04,3653.9,3653.2,3.19568959]
[1753404186519,0.04,3653.9,3653.8,2.73687667]
[1753404187023,0.04,3653.9,3653.8,3.64237667]
[1753404187387,0.04,3653.9,3653.8,2.73687667]
[1753404187899,0.04,3653.9,3653.8,3.19527667]
[1753404188342,0.04,3653.9,3653.8,3.64237667]
[1753404188506,0.04,3653.9,3653.8,5.21411439]
[1753404188706,0.04,3654.9,3654.8,2.73612783]
[1753404189060,0.1768,3654.9,3654.8,2.73612783]
[1753404189397,0.1768,3654.9,3654.5,2.73632456]
[1753404189398,0.1768,3654.9,3654.5,2.7363289]
[1753404189602,0.04,3654.9,3654.8,2.73612783]
[1753404189797,0.1768,3654.9,3654.8,2.73612783]
[1753404190730,0.04,3654.9,3654.8,2.73612783]
[1753404190931,0.04,3654.9,3654.8,3.19452783]
[1753404191334,0.04,3654.9,3654.8,2.73612783]
[1753404191636,0.04,3654.9,3654.7,2.73620269]
[1753404191938,0.1768,3654.9,3654.7,2.73620269]
[1753404192097,0.1768,3654.9,3654.4,0.4584]
[1753404192297,0.1368,3654.7,3654.5,2.7363314]
[1753404192825,0.1368,3654.7,3654.6,2.73627756]
[1753404193026,0.04,3654.9,3654.6,2.73627756]
[1753404193338,0.1768,3654.9,3654.7,0.4584]
[1753404193546,0.04,3654.9,3654.8,2.73612783]
[1753404194567,0.04,3654.9,3654.2,0.4584]
[1753404194702,0.1368,3654.7,3654.5,2.73633581]
[1753404194902,0.1368,3654.7,3654.3,2.73642935]
[1753404195212,0.1368,3654.6,3654.3,0.4584]
[1753404195413,0.04,3654.9,3654.8,2.73612783]
[1753404195616,0.04,3654.9,3654.5,0.4786]
[1753404195914,0.04,3654.9,3654.6,0.1368]
[1753404196116,0.04,3654.9,3654.8,2.73612783]
[1753404197241,0.04,3654.9,3654.8,4.27270629]
[1753404197536,0.04,3654.9,3654.8,9.93740629]
[1753404197935,0.04,3654.9,3654.8,2.73612783]
[1753404198139,0.04,3654.9,3654.8,3.21472783]
[1753404198305,0.04,3654.9,3654.8,3.66392783]
[1753404199240,0.04,3654.9,3654.8,3.21472783]
[1753404199450,0.04,3654.9,3654.5,2.73635244]
[1753404199952,0.04,3654.9,3654.6,2.7362222]
[1753404200148,0.04,3654.9,3654.5,3.21488351]
[1753404200326,0.042,3654.9,3654.8,2.73612783]
[1753404200525,0.042,3654.9,3654.6,2.73622132]
[1753404200526,0.042,3654.9,3654.6,0.9278]
[1753404200754,0.042,3654.9,3654.7,2.73614407]
[1753404201069,0.042,3654.9,3654.8,2.73612783]
[1753404201217,0.042,3654.9,3654.2,0.7799]
[1753404201554,0.042,3654.9,3654.6,2.73626362]
[1753404201720,0.042,3654.9,3654.4,2.73636548]
[1753404201917,0.042,3654.9,3654.5,2.73633852]
[1753404202233,0.042,3654.9,3654.8,2.73612783]
[1753404202429,0.042,3654.9,3654.8,3.21472783]
[1753404202929,0.042,3654.9,3654.8,3.66392783]
[1753404203749,0.042,3654.9,3654.8,8.39992783]
[1753404204731,0.042,3654.9,3654.8,8.39492783]
[1753404205341,0.042,3654.9,3654.8,4.67659188]
[1753404205542,0.042,3654.9,3654.8,9.40359188]
[1753404206333,0.042,3654.9,3654.8,10.20149188]
[1753404207752,0.042,3654.9,3654.8,5.47449188]
[1753404207951,0.042,3654.9,3654.8,10.33529188]
[1753404208987,0.042,3654.9,3654.8,10.32229188]
[1753404209868,0.042,3654.9,3654.8,5.61129188]
[1753404210073,0.042,3654.9,3654.8,10.32229188]
[1753404210640,1e-08,3654.9,3654.8,13.32229188]
[1753404210865,1e-08,3654.9,3654.8,8.61129188]
[1753404211064,1e-08,3654.9,3654.8,13.31229188]
[1753404211677,1e-08,3654.9,3654.8,13.31029188]
[1753404211888,1e-08,3654.9,3654.8,8.61129188]
[1753404212042,1e-08,3654.9,3654.8,13.31029188]
[1753404212579,1e-08,3654.9,3654.8,13.30729188]
[1753404212951,1e-08,3654.9,3654.8,13.30629188]
[1753404213167,1e-08,3654.9,3654.8,12.85709188]
[1753404213473,1e-08,3654.9,3654.8,13.30629188]
[1753404213678,1e-08,3654.9,3654.8,8.61129188]
[1753404213848,1e-08,3654.9,3654.8,12.85709188]
[1753404214053,1e-08,3654.9,3654.8,13.30629188]
[1753404214861,1e-08,3654.9,3654.8,8.61129188]
[1753404215062,1e-08,3654.9,3654.8,4.68349188]
[1753404215249,1e-08,3654.9,3654.8,3.67082783]
[1753404215454,1e-08,3654.9,3654.8,8.35482783]
[1753404216192,1e-08,3654.9,3654.8,0.1368]
[1753404216337,1e-08,3654.9,3654.8,7.55392783]
[1753404216543,1e-08,3654.9,3654.8,2.87292783]
[1753404216771,1e-08,3654.9,3654.8,4.678]
[1753404217743,1e-08,3654.9,3654.7,4.677]
[1753404217943,1e-08,3654.9,3654.6,0.1368]
[1753404217944,0.46910001,3654.9,3654.6,0.1368]
[1753404218183,0.4691,3654.8,3654.6,0.1368]
[1753404218338,0.4691,3654.8,3654.4,2.87321097]
[1753404218544,0.1368,3654.6,3654.1,4.8078]
[1753404218788,1.0597,3654.6,3654.1,4.8078]
[1753404218987,1.0597,3654.6,3654.1,0.1368]
[1753404219283,0.1368,3654.4,3653.8,2.87366793]
[1753404219693,0.1368,3654.4,3653.9,2.7367914]
[1753404220037,0.7986,3654.6,3653.9,0.56105208]
[1753404220178,0.45380001,3654.9,3654.2,2.73655719]
[1753404220616,0.45380001,3654.9,3654.3,2.73648428]
[1753404220818,1e-08,3654.9,3654.0,0.02085067]
[1753404221016,1e-08,3654.9,3652.1,2.77810066]
[1753404221017,1e-08,3654.9,3654.2,0.4786]
[1753404221192,1e-08,3654.9,3654.2,3.21516814]
[1753404221393,1e-08,3654.9,3654.2,0.36643681]
[1753404221583,0.9229,3654.8,3653.8,4.66]
[1753404221914,0.03420253,3654.7,3653.8,10.39685903]
[1753404222085,0.03420253,3654.7,3653.8,3.0]
[1753404222281,0.03420253,3654.7,3654.0,2.73669936]
[1753404222717,1e-08,3654.9,3654.0,1.3612165]
[1753404223018,1e-08,3654.9,3654.3,2.73647743]
[1753404223221,1e-08,3654.9,3654.0,5.1356]
[1753404223387,1e-08,3654.9,3654.0,7.87229621]
[1753404223787,1.2798,3654.8,3653.9,4.656]
[1753404223989,1.7489,3654.8,3654.2,2.73657567]
[1753404224201,1.7489,3654.8,3654.1,2.73663556]
[1753404224403,1.7489,3654.8,3654.2,2.73657243]
[1753404224601,1.7489,3654.8,3653.8,5.73787346]
[1753404224799,1.7489,3654.8,3654.0,2.73672241]
[1753404225206,4.48503515,3654.8,3654.0,2.73672241]
[1753404225506,0.826,3654.8,3654.1,0.02084685]
[1753404225812,1e-08,3654.9,3654.2,3.19497708]
[1753404225986,1e-08,3654.9,3654.8,2.73612783]
[1753404226192,1e-08,3654.9,3654.8,3.00974061]
[1753404226496,1e-08,3654.9,3654.8,8.59354061]
[1753404227085,1e-08,3654.9,3654.8,3.48714061]
[1753404227285,1e-08,3654.9,3654.8,2.73612783]
[1753404228107,1e-08,3654.9,3654.5,2.73635181]
[1753404228427,1e-08,3654.9,3654.7,0.4774]
[1753404228629,1e-08,3654.9,3654.8,2.73612783]
[1753404228814,1e-08,3654.9,3654.8,3.21352783]
[1753404229122,1e-08,3654.9,3654.8,4.73130837]
[1753404230005,1e-08,3654.9,3654.8,4.86810837]
[1753404230407,1e-08,3654.9,3654.8,9.50510837]
[1753404231222,1e-08,3654.9,3654.8,4.86810837]
[1753404231527,1e-08,3654.9,3654.8,9.49910837]
[1753404232026,1e-08,3654.9,3654.4,8.13739427]
[1753404232233,1e-08,3654.9,3654.7,2.73614961]
[1753404232727,1e-08,3654.9,3654.8,2.73612783]
[1753404233217,1e-08,3654.9,3654.6,2.73622329]
[1753404233597,1e-08,3654.9,3654.7,2.73618182]
[1753404234138,1e-08,3654.9,3654.8,7.86336548]
[1753404234289,1e-08,3654.9,3654.8,8.30092783]
[1753404234498,1e-08,3654.9,3654.8,3.67192783]
[1753404234696,1e-08,3654.9,3654.8,7.83452783]
[1753404235325,1e-08,3654.9,3654.8,3.21352783]
[1753404235525,1e-08,3654.9,3654.8,7.35712783]
[1753404235930,1e-08,3654.9,3654.1,3.0]
[1753404236114,0.9472,3654.8,3654.3,2.73644205]
[1753404236309,1e-08,3654.9,3654.5,2.73629776]
[1753404236601,1e-08,3654.9,3654.4,7.83077481]
[1753404236802,1e-08,3654.9,3654.6,2.73627559]
[1753404237245,1e-08,3654.9,3654.5,2.73633975]
[1753404237452,1e-08,3654.9,3654.6,2.73626505]
[1753404237929,1e-08,3654.9,3654.8,2.73612783]
[1753404238299,1e-08,3654.9,3654.8,8.28492783]
[1753404238821,1e-08,3654.9,3654.8,9.03982783]
[1753404239406,1e-08,3654.9,3654.8,9.03482783]
[1753404240222,1e-08,3654.9,3654.8,12.03482783]
[1753404240402,1e-08,3654.9,3654.8,13.61918726]
[1753404241421,1e-08,3654.9,3654.8,13.61618726]
[1753404241621,0.04,3656.9,3655.9,5.612438]
[1753404241832,0.04,3656.9,3656.8,2.73463137]
[1753404242141,0.04,3656.9,3656.8,8.11725709]
[1753404242641,0.1768,3657.9,3657.8,2.73388375]
[1753404242937,0.04,3657.9,3657.8,2.73388375]
[1753404246032,0.04,3657.9,3657.8,3.21128375]
[1753404246427,0.04,3657.9,3657.8,2.73388375]
[1753404246672,0.04,3657.9,3657.8,3.3265123]
[1753404249163,0.04,3657.9,3657.8,0.59262855]
[1753404249362,0.04,3657.9,3657.7,2.73394055]
[1753404249552,0.042,3657.9,3657.8,2.73388375]
[1753404250643,0.042,3657.9,3657.8,3.21128375]
[1753404252292,0.042,3657.9,3657.8,7.79328375]
[1753404252796,0.042,3657.9,3657.8,3.66968375]
[1753404252957,0.042,3657.9,3657.8,8.89205419]
[1753404253503,0.042,3657.9,3657.8,7.95325419]
[1753404254072,0.042,3657.9,3657.8,7.95125419]
[1753404254487,0.042,3657.9,3657.8,8.88705419]
[1753404254692,0.042,3657.9,3657.8,8.88505419]
[1753404255609,0.04,3658.9,3658.8,2.73313654]
[1753404255896,0.04,3658.9,3658.8,3.94685019]
[1753404256098,0.04,3658.9,3658.8,0.41011365]
[1753404256404,1.7624,3658.9,3658.8,0.1368]
[1753404256573,1.7624,3658.9,3657.9,5.37]
[1753404256574,1.7624,3658.9,3658.0,2.73373428]
[1753404256760,0.8629,3658.9,3658.5,0.1368]
[1753404257107,0.04,3658.9,3658.8,2.73313654]
[1753404257509,0.04,3658.9,3658.8,2.86993654]
[1753404257679,0.04,3658.9,3658.8,3.43025879]
[1753404259009,0.04,3658.9,3658.8,0.69712225]
[1753404259219,0.04,3658.9,3658.8,3.43025879]
[1753404259377,0.4769,3658.9,3658.8,3.43025879]
[1753404259576,0.4769,3658.9,3658.8,0.69712225]
[1753404259912,0.01337891,3659.5,3658.8,0.69712225]
[1753404259913,1e-08,3659.9,3659.8,2.73238974]
[1753404260122,1e-08,3659.9,3659.8,3.94602871]
[1753404260411,0.94813177,3662.2,3659.8,3.94602871]
[1753404260412,0.14255705,3663.4,3661.9,2.88]
[1753404260618,1.42040326,3663.8,3663.0,2.73000273]
[1753404260619,0.002,3663.8,3663.0,2.73000273]
[1753404260913,0.002,3663.8,3663.7,2.72948112]
[1753404262509,0.002,3663.8,3662.7,0.8037]
[1753404262711,0.8995,3663.7,3662.8,0.16952162]
[1753404263010,0.8995,3663.7,3663.2,2.72981511]
[1753404263209,0.8995,3663.7,3663.3,2.72977342]
[1753404263513,0.4626,3663.6,3663.1,2.72991684]
[1753404263710,0.8995,3663.6,3663.1,2.72991684]
[1753404263912,0.4369,3663.6,3663.2,0.27299168]
[1753404264101,0.002,3663.8,3662.8,0.16952162]
[1753404264102,0.8995,3663.5,3662.8,0.16952162]
[1753404264297,0.002,3663.8,3662.6,0.42711623]
[1753404264502,0.002,3663.8,3662.7,0.02730226]
[1753404264812,0.002,3663.8,3663.6,2.72951364]
[1753404265007,0.002,3663.8,3662.8,0.476]
[1753404265008,0.002,3663.8,3663.7,2.75677593]
[1753404265415,0.002,3663.8,3663.7,3.20548112]
[1753404265597,0.002,3663.8,3663.7,3.80709062]
[1753404265798,0.002,3663.8,3662.8,0.476]
[1753404265997,0.8995,3663.7,3663.2,2.7298286]
[1753404266202,0.8995,3663.6,3663.0,2.72993234]
[1753404266402,0.8995,3663.6,3663.1,2.72990498]
[1753404266704,0.4626,3663.5,3663.1,2.7298671]
[1753404266875,0.4626,3663.5,3663.2,0.27298671]
[1753404267318,0.8311,3663.3,3662.6,2.73027738]
[1753404267503,0.8311,3663.3,3662.4,11.34341694]
[1753404267819,0.4626,3663.2,3662.4,8.61299866]
[1753404268122,0.4626,3663.2,3662.6,2.73030087]
[1753404268723,0.002,3663.8,3662.7,3.02730226]
[1753404268892,0.002,3663.8,3663.7,2.72948112]
[1753404269291,0.002,3663.8,3663.6,2.72953949]
[1753404269484,0.002,3663.8,3663.7,2.72948112]
[1753404269710,0.002,3663.8,3663.1,0.476]
[1753404270002,0.002,3663.8,3662.8,3.35033023]
[1753404270003,0.4626,3663.7,3662.8,3.35033023]
[1753404270201,0.4626,3663.7,3663.5,0.1368]
[1753404270701,0.8995,3663.6,3663.4,0.1368]
[1753404270904,0.4626,3663.5,3663.4,0.1368]
[1753404271284,0.8995,3663.5,3663.2,2.72984897]
[1753404271484,0.8995,3663.4,3663.3,0.1368]
[1753404271725,0.8995,3663.4,3662.5,3.0]
[1753404272019,3.19243372,3663.3,3662.9,0.1368]
[1753404272242,0.8995,3663.2,3662.6,1.20889987]
[1753404272522,0.1368,3663.1,3662.6,0.1368]
[1753404272900,0.5737,3663.1,3662.6,0.1368]
[1753404273100,0.1368,3663.1,3662.6,2.86709144]
[1753404273403,0.1368,3663.1,3662.6,0.1368]
[1753404273620,1.0363,3663.1,3662.6,0.42352498]
[1753404273787,0.4626,3663.0,3662.6,0.42352498]
[1753404274123,0.4626,3662.9,3662.6,0.42352498]
[1753404274428,0.1368,3663.1,3662.6,0.1368]
[1753404274625,5.7045,3663.4,3662.6,2.7302332]
[1753404274829,0.8995,3663.4,3661.9,0.4644]
[1753404275039,0.7649,3663.7,3663.5,2.7296272]
[1753404275197,0.002,3663.8,3663.6,2.72955562]
[1753404275535,0.002,3663.8,3663.6,3.27547614]
[1753404275743,0.002,3663.8,3663.7,2.72948112]
[1753404276257,0.002,3663.8,3663.6,3.27545692]
[1753404276401,0.002,3663.8,3663.7,2.72948112]
[1753404276849,0.002,3663.8,3663.6,3.27546108]
[1753404277053,0.4389,3663.8,3662.9,3.0]
[1753404277251,0.4389,3663.8,3662.8,3.20614581]
[1753404277252,0.4626,3663.7,3663.4,2.72965078]
[1753404277604,0.4626,3663.7,3663.5,2.72961746]
[1753404277842,0.4389,3663.8,3663.5,2.72961746]
[1753404278041,0.4389,3663.8,3663.3,2.72977916]
[1753404278042,0.002,3663.8,3663.7,2.72948112]
[1753404278615,0.002,3663.8,3663.7,3.75139518]
[1753404278855,0.002,3663.8,3663.7,3.77868999]
[1753404279050,0.002,3663.8,3663.7,4.24308999]
[1753404279353,1e-08,3663.9,3663.8,2.72940662]
[1753404279501,1e-08,3663.9,3663.8,5.72940662]
[1753404279706,1e-08,3663.9,3663.8,9.09804805]
[1753404281223,1e-08,3663.9,3663.8,13.87004805]
[1753404282038,1e-08,3663.9,3663.8,17.75037305]
[1753404282343,0.04,3664.9,3664.7,0.8248]
[1753404282509,1e-08,3665.3,3665.2,2.72836407]
[1753404282708,1e-08,3665.3,3665.2,8.36333541]
[1753404283040,1e-08,3665.3,3665.2,13.06115177]
[1753404283209,1e-08,3665.9,3665.8,2.7279175]
[1753404283409,1e-08,3665.9,3665.8,10.51719667]
[1753404283606,1e-08,3665.9,3665.8,11.4303175]
[1753404283938,1e-08,3665.9,3665.8,12.84615051]
[1753404284338,1e-08,3665.9,3665.8,13.60065051]
[1753404284545,1e-08,3666.5,3666.4,2.72747108]
[1753404284838,1e-08,3666.5,3666.4,10.48347108]
[1753404285030,1e-08,3666.5,3666.4,11.55987108]
[1753404285213,1e-08,3666.5,3666.4,12.98861494]
[1753404287132,1e-08,3666.9,3666.6,2.72732231]
[1753404287458,0.002,3667.4,3667.2,5.72687609]
[1753404287611,0.002,3667.4,3667.2,10.60887609]
[1753404287816,0.002,3667.4,3667.2,8.89306102]
[1753404288115,0.002,3667.4,3667.2,13.64006102]
[1753404288446,0.002,3667.4,3667.2,5.86287609]
[1753404288929,0.002,3667.4,3667.2,6.34607609]
[1753404289262,0.002,3667.4,3667.2,5.72687609]
[1753404290646,0.8013,3667.2,3665.5,0.781]
[1753404290823,0.909,3667.1,3666.2,2.72760379]
[1753404291022,0.909,3667.0,3666.3,2.75482044]
[1753404291224,0.909,3667.0,3666.5,2.72732508]
[1753404291442,0.8013,3667.2,3666.7,2.72724793]
[1753404291746,0.002,3667.3,3666.8,4.04452479]
[1753404291924,0.002,3667.3,3667.2,2.72687609]
[1753404292317,0.002,3667.3,3667.2,5.72687609]
[1753404292523,1e-08,3667.4,3667.3,5.72680173]
[1753404292735,1e-08,3667.4,3667.3,6.21000173]
[1753404293045,1e-08,3667.4,3667.3,11.63418654]
[1753404293247,1e-08,3667.4,3667.3,12.58028654]
[1753404293411,1e-08,3667.6,3667.3,12.58028654]
[1753404293611,1e-08,3667.6,3667.5,5.72665303]
[1753404294661,1e-08,3667.6,3667.5,10.94885303]
[1753404294860,1e-08,3667.6,3667.5,12.43305699]
[1753404295961,1e-08,3667.6,3667.5,13.71685699]
[1753404296149,1e-08,3667.9,3667.8,2.72643001]
[1753404296349,1e-08,3667.9,3667.8,10.48669431]
[1753404296664,1e-08,3667.9,3667.8,11.40553001]
[1753404296867,1e-08,3667.9,3667.8,13.32191108]
[1753404297232,1e-08,3667.9,3667.8,12.85601108]
[1753404297541,1e-08,3667.9,3667.8,13.31791108]
[1753404298055,1e-08,3667.9,3667.8,8.58891108]
[1753404298256,1e-08,3667.9,3667.8,13.31791108]
[1753404298457,1e-08,3667.9,3667.8,13.15221108]
[1753404298632,0.04,3669.9,3669.6,2.72509265]
[1753404298970,0.04,3669.9,3669.8,2.72494413]
[1753404299286,0.04,3669.9,3669.8,5.86094413]
[1753404299880,0.949,3669.9,3669.8,5.86094413]
[1753404300063,0.5184,3669.9,3669.8,2.86094413]
[1753404300270,0.04,3669.9,3669.8,0.136]
[1753404300565,0.949,3669.9,3669.8,2.86094413]
[1753404300773,0.04,3669.9,3669.8,2.86094413]
[1753404301131,0.949,3669.9,3669.8,2.72494413]
[1753404301334,0.04,3669.9,3669.8,2.86094413]
[1753404301757,0.949,3669.9,3669.1,3.0]
[1753404301971,0.8241,3669.7,3668.9,2.72560629]
[1753404302138,1.045,3669.6,3669.1,0.136]
[1753404302338,1.045,3669.6,3669.1,2.86144413]
[1753404302675,0.909,3669.5,3669.1,0.136]
[1753404302968,0.909,3669.5,3668.8,2.72567739]
[1753404302969,2.72524118,3669.4,3668.8,0.136]
[1753404303270,1.045,3669.3,3668.8,0.136]
[1753404303476,3.50869116,3669.2,3668.8,0.136]
[1753404303684,0.909,3669.1,3668.8,0.136]
[1753404303979,2.86162354,3668.9,3668.2,0.136]
[1753404304163,0.7969,3668.7,3667.4,0.8084]
[1753404304334,0.136,3668.6,3668.1,0.136]
[1753404304541,0.6144,3668.6,3668.1,0.136]
[1753404304740,0.909,3668.5,3668.1,0.136]
[1753404305082,0.909,3668.4,3668.2,2.75339402]
[1753404305378,0.909,3668.4,3668.3,2.86205839]
[1753404305894,0.909,3668.4,3668.3,0.136]
[1753404306176,0.909,3668.4,3668.3,2.86205839]
[1753404306362,0.909,3668.4,3667.3,2.72679534]
[1753404306363,0.909,3668.4,3667.8,2.72637415]
[1753404306542,0.909,3668.3,3668.0,0.136]
[1753404307080,0.909,3668.2,3668.0,0.136]
[1753404307460,2.72599456,3668.4,3668.0,0.136]
[1753404307657,0.909,3668.1,3667.9,0.136]
[1753404308086,1.6641,3668.0,3667.8,0.136]
[1753404308583,0.909,3667.9,3667.8,0.136]
[1753404309253,0.7551,3668.0,3667.8,2.86243001]
[1753404309450,1.2545,3668.4,3668.3,2.72605839]
[1753404309698,0.4306,3668.4,3668.3,2.72605839]
[1753404309884,0.4306,3668.4,3668.3,2.86205839]
[1753404310070,0.4784,3668.5,3668.4,2.72598408]
[1753404310404,5.1196,3668.7,3668.3,2.86205839]
[1753404310405,0.909,3668.4,3668.3,2.86205839]
[1753404310912,0.8176,3668.8,3668.7,2.72576116]
[1753404311107,4.691,3669.0,3668.9,2.72561258]
[1753404311266,4.686,3669.1,3669.0,2.72548715]
[1753404311469,0.4784,3669.2,3669.1,2.72546401]
[1753404311665,5.1654,3669.2,3669.1,2.72546401]
[1753404311909,5.596,3669.2,3669.1,2.72546401]
[1753404312514,4.686,3669.2,3669.1,2.72546401]
[1753404313004,4.682,3669.2,3669.1,2.72545021]
[1753404313802,0.8247,3669.3,3669.1,2.72545473]
[1753404314007,5.1066,3669.2,3669.0,2.86152731]
[1753404314214,5.1066,3669.2,3669.0,0.136]
[1753404314418,5.585,3669.2,3669.0,2.86148666]
[1753404314614,5.585,3669.2,3669.0,0.136]
[1753404315019,4.669,3669.1,3669.0,0.136]
[1753404315934,0.909,3669.2,3669.0,0.136]
[1753404316139,4.669,3669.1,3669.0,0.136]
[1753404316506,5.1293,3669.1,3669.0,0.136]
[1753404316838,5.1293,3669.1,3668.6,0.137]
[1753404316839,5.7622,3669.1,3668.6,0.137]
[1753404317149,1.7773,3669.0,3668.6,0.001]
[1753404317443,0.002,3669.6,3668.6,0.001]
[1753404317653,5.1273,3669.5,3669.1,2.72541463]
[1753404317802,5.1273,3669.5,3668.7,2.72576116]
[1753404318000,5.1273,3669.5,3669.3,2.72527955]
[1753404318253,5.1273,3669.5,3669.1,2.72543549]
[1753404318400,4.667,3669.5,3669.1,2.72543549]
[1753404318717,0.4603,3669.4,3669.2,2.72537929]
[1753404318917,0.4603,3669.4,3668.9,2.72554616]
[1753404319255,0.9572,3669.3,3668.6,0.001]
[1753404319540,5.6212,3669.3,3668.6,2.72683457]
[1753404319745,5.6212,3669.3,3668.7,2.72568699]
[1753404319900,0.002,3669.6,3668.8,2.72566534]
[1753404320107,0.002,3669.6,3668.7,0.777]
[1753404320108,4.657,3669.5,3668.7,2.04510185]
[1753404320444,4.657,3669.5,3669.4,2.72524118]
[1753404320926,5.6272,3669.5,3669.3,2.72524445]
[1753404321126,5.1669,3669.5,3669.4,2.72524118]
[1753404321329,5.1669,3669.5,3668.7,1.26810185]
[1753404321529,5.1669,3669.5,3669.4,2.72524118]
[1753404321728,5.1669,3669.5,3668.7,2.75301877]
[1753404321729,5.6252,3669.5,3669.3,2.72529841]
[1753404322036,0.4603,3669.5,3669.4,2.72524118]
[1753404322242,0.002,3669.6,3669.5,2.72516691]
[1753404322437,4.667,3669.6,3669.5,2.72516691]
[1753404322639,5.1273,3669.6,3669.4,2.72522455]
[1753404322840,4.667,3669.6,3669.4,2.72522455]
[1753404323046,0.4603,3669.5,3669.4,2.72522455]
[1753404324038,0.4603,3669.5,3668.6,0.4814]
[1753404324039,0.9572,3669.5,3669.1,2.72543702]
[1753404324242,5.6232,3669.5,3669.4,2.72524118]
[1753404324761,5.1263,3669.5,3669.4,2.72524118]
[1753404324944,4.666,3669.5,3669.4,2.72524118]
[1753404325824,4.656,3669.5,3669.4,2.72524118]
[1753404326227,0.002,3669.6,3669.5,2.72516691]
[1753404326432,4.653,3669.6,3669.5,2.72516691]
[1753404326642,4.648,3669.6,3669.5,2.72516691]
[1753404327043,4.648,3669.6,3669.5,2.86116691]
[1753404327444,0.002,3669.6,3669.5,3.36881857]
[1753404327611,0.002,3669.6,3669.5,4.08256237]
[1753404330159,1e-08,3669.6,3669.5,7.51006237]
[1753404332347,1e-08,3669.6,3669.5,7.08256237]
[1753404332534,1e-08,3669.6,3669.5,6.60216237]
[1753404333253,1e-08,3669.6,3669.5,7.08256237]
[1753404333873,1e-08,3669.6,3669.5,7.51006237]
[1753404335638,47.07413085,3670.0,3669.9,6.53956988]
[1753404335858,47.07413085,3670.0,3669.9,7.87452593]
[1753404336065,47.07413085,3670.0,3669.9,8.78242593]
[1753404337259,47.07413085,3670.0,3669.9,13.38742593]
[1753404338259,47.07413085,3670.0,3669.9,8.78242593]
[1753404338763,47.07413085,3670.0,3669.9,13.38142593]
[1753404339279,27.893723,3670.0,3669.9,20.66622993]
[1753404339570,27.893723,3670.0,3669.9,19.88234793]
[1753404339734,0.002,3670.3,3670.2,2.72464715]
[1753404339935,0.002,3670.3,3670.2,13.15773891]
[1753404340135,0.002,3670.3,3670.2,14.06563891]
[1753404340560,0.002,3670.3,3670.2,15.70563891]
[1753404340751,0.002,3670.3,3670.2,14.06563891]
[1753404340954,0.002,3670.3,3670.2,24.06855491]
[1753404341347,0.002,3670.3,3670.2,21.43659391]